Workbook

Sheet 作業1 (hidden)
C3: 作業S | D3: 作業S | F3: 経 | H3: 費 | J3: 経 費 額 | M3: 負担No. | O3: 源泉額 | Q3: 実支払額 | T3: 債権者 | Y3: 備 考 | AA3: 支払日 | AB3: 事業名 | AC3: 検索1
F4: 指事 | H4: 使賃 | J4: 47,900 | M4: Ｎｏ．15 | O4: 0 | Q4: =J4-O4 -> 47,900 | T4: ひこね市文化ﾌﾟﾗｻﾞ運営共同事業体 | Y4: 12/24.25文ﾌﾟﾗ施設利用料 | AA4: 2011-04-07 | AB4: ﾋﾟｱｺﾝ | AC4: =CONCATENATE(H4,AB4) -> 使賃ﾋﾟｱｺﾝ
F5: 指事 | H5: 消耗 | J5: 400 | M5: Ｎｏ．96 | O5: 0 | Q5: 400 | T5: 資金前渡員/矢倉郵便局 | Y5: 収入印紙 | AA5: 2011-04-22 | AB5: ねっと | AC5: 消耗ねっと
F6: 指事 | H6: 使賃 | J6: 12,600 | M6: Ｎｏ．118 | O6: 0 | Q6: 12,600 | T6: 資金前渡員/滋賀県道路公社 | Y6: 近江大橋回数券 | AA6: 2011-04-26 | AB6: 自主PR | AC6: 使賃自主PR
F7: 指事 | H7: 消耗 | J7: 11,385 | M7: Ｎｏ．57 | O7: 0 | Q7: 11,385 | T7: ㈱ｱﾔﾊﾃﾞｨｵ栗東店 | Y7: 今森光彦展ｱﾙﾊﾞｲﾄ賃金 | AA7: 2011-04-28 | AB7: ｱｰﾄﾒｲﾂ | AC7: 消耗ｱｰﾄﾒｲﾂ
F8: 指事 | H8: 消耗 | J8: 10,400 | M8: Ｎｏ．58 | O8: 0 | Q8: 10,400 | T8: ㈱ﾔﾏﾀﾞ電機 | Y8: ﾒﾓﾘｰ | AA8: 2011-04-28 | AB8: ｲﾝﾌｫ | AC8: 消耗ｲﾝﾌｫ
F9: 指事 | H9: 使賃 | J9: 11,195 | M9: 振替54 | O9: 0 | Q9: 11,195 | T9: 施設利用料収入振替 | Y9: 4月分自主ｻｰｸﾙ使用料補助 | AA9: 2011-04-27 | AB9: ｱｰﾄﾒｲﾂ | AC9: 使賃ｱｰﾄﾒｲﾂ
F10: 指事 | H10: 旅費 | J10: 27,680 | M10: Ｎｏ．172 | O10: 0 | Q10: 27,680 | T10: 資金前渡員/西日本旅客鉄道株式会社 | Y10: 演出家旅費 | AA10: 2011-05-06 | AB10: ﾐｭｰｼﾞｶﾙ | AC10: 旅費ﾐｭｰｼﾞｶﾙ
F11: 指事 | H11: 旅費 | J11: (990) | O11: 0 | Q11: (990) | T11: 資金前渡員/西日本旅客鉄道株式会社 | Y11: 演出家旅費精算戻入 | AA11: 2011-05-06 | AB11: ﾐｭｰｼﾞｶﾙ | AC11: 旅費ﾐｭｰｼﾞｶﾙ
F12: 指事 | H12: 使賃 | J12: 450 | M12: Ｎｏ．183 | O12: 0 | Q12: 450 | T12: 西日本高速道路㈱ | Y12: ETCｶｰﾄﾞ有料道路通行料3月 | AA12: 2011-05-10 | AB12: 自主PR | AC12: 使賃自主PR
F13: 指事 | H13: 印刷 | J13: 89,775 | M13: Ｎｏ．36 | O13: 0 | Q13: 89,775 | T13: 近江印刷㈱ | Y13: ﾓﾉﾗﾝﾓﾉﾗﾝﾁﾗｼ･ﾎﾟｽﾀｰ | AA13: 2011-05-13 | AB13: ﾓﾉﾗﾝ | AC13: 印刷ﾓﾉﾗﾝ
F14: 指事 | H14: 消耗 | J14: 10,290 | M14: Ｎｏ．142 | O14: 0 | Q14: 10,290 | T14: ㈱ﾔﾏﾀﾞ電機 | Y14: ICﾚｺｰﾀﾞｰ | AA14: 2011-05-13 | AB14: ｲﾝﾌｫ | AC14: 消耗ｲﾝﾌｫ
F15: 指事 | H15: 委託 | J15: 81,900 | M15: Ｎｏ．144 | O15: 0 | Q15: 81,900 | T15: （有）でじまむﾜｰｶｰｽﾞ | Y15: 4月分あーとねっと管理保守委託業務 | AA15: 2011-05-13 | AB15: ねっと | AC15: 委託ねっと
F16: 指事 | H16: 消耗 | J16: 2,000 | M16: Ｎｏ．251 | O16: 0 | Q16: 2,000 | T16: 資金前渡員/草津矢倉郵便局 | Y16: ﾓﾉﾗﾝ契約書印紙代 | AA16: 2011-05-20 | AB16: ﾓﾉﾗﾝ | AC16: 消耗ﾓﾉﾗﾝ
F17: 指事 | H17: 通信 | J17: 19,000 | M17: Ｎｏ．350 | O17: 0 | Q17: 19,000 | T17: 資金前渡員/草津矢倉郵便局 | Y17: 切手･ﾚﾀｰﾊﾟｯｸ | AA17: 2011-05-26 | AB17: 自主PR | AC17: 通信自主PR
F18: 指事 | H18: 報償 | J18: 168,888 | M18: 振替156 | O18: 16,888 | Q18: 152,000 | T18: 資金前渡員/村田明日香 | Y18: ﾍﾞﾝｼﾞｮﾝｿﾝｼﾞｬｽﾞ出演料 | AA18: 2011-05-26 | AB18: ｺﾗﾎﾞﾍﾞﾝ | AC18: 報償ｺﾗﾎﾞﾍﾞﾝ
F19: 指事 | H19: 使賃 | J19: 12,450 | M19: 振替167 | O19: 0 | Q19: 12,450 | T19: 施設利用料収入振替 | Y19: 5月分自主ｻｰｸﾙ使用料補助 | AA19: 2011-05-27 | AB19: ｱｰﾄﾒｲﾂ | AC19: 使賃ｱｰﾄﾒｲﾂ
F20: 指事 | H20: 旅費 | J20: 2,030 | M20: Ｎｏ．342 | O20: 0 | Q20: =+J20-O20 -> 2,030 | T20: 創造館職員 | Y20: 4月精算旅費 | AA20: 2011-05-30 | AB20: ﾎﾞﾗ | AC20: 旅費ﾎﾞﾗ
F21: 指事 | H21: 旅費 | J21: 11,480 | M21: Ｎｏ．342 | O21: 0 | Q21: =+J21-O21 -> 11,480 | T21: 創造館＋本部職員 | Y21: 4月精算旅費 | AA21: 2011-05-30 | AB21: 音活 | AC21: 旅費音活
F22: 指事 | H22: 旅費 | J22: 13,031 | M22: Ｎｏ．342 | O22: 0 | Q22: =+J22-O22 -> 13,031 | T22: 創造館職員 | Y22: 4月精算旅費 | AA22: 2011-05-30 | AB22: 自主PR | AC22: 旅費自主PR
F23: 指事 | H23: 旅費 | J23: 11,630 | M23: Ｎｏ．342 | O23: 0 | Q23: =+J23-O23 -> 11,630 | T23: 創造館＋本部職員 | Y23: 4月精算旅費 | AA23: 2011-05-30 | AB23: ｺﾗﾎﾞ共通 | AC23: 旅費ｺﾗﾎﾞ共通
F24: 指事 | H24: 委託 | J24: 42,000 | M24: Ｎｏ．355 | O24: 0 | Q24: =J24-O24 -> 42,000 | T24: ㈱ﾋﾞﾜﾛｰﾌﾞ | Y24: 4月ﾚﾝﾀﾙｻｰﾊﾞ運用保守 | AA24: 2011-05-31 | AB24: ねっと | AC24: 委託ねっと
F25: 指事 | H25: 消耗 | J25: 7,383 | M25: Ｎｏ．234 | O25: 0 | Q25: 7,383 | T25: ㈱平柿文仙堂 | Y25: 4月文化芸術情報雑誌 | AA25: 2011-05-31 | AB25: ｲﾝﾌｫ | AC25: 消耗ｲﾝﾌｫ
F26: 指事 | H26: 印刷 | J26: 210,000 | M26: Ｎｏ．214 | O26: 0 | Q26: 210,000 | T26: 大津紙業写真印刷㈱ | Y26: 絵画展募集要項印刷 | AA26: 2011-05-31 | AB26: 湖国 | AC26: 印刷湖国
F27: 指事 | H27: 消耗 | J27: 8,400 | M27: Ｎｏ．215 | O27: 0 | Q27: 8,400 | T27: ㈱広宣 | Y27: 絵画展募集横断広告幕書換 | AA27: 2011-05-31 | AB27: 湖国 | AC27: 消耗湖国
F28: 指事 | H28: 印刷 | J28: 52,500 | M28: Ｎｏ．282 | O28: 0 | Q28: 52,500 | T28: うーぴ企画 祖父江立美 | Y28: ｺﾗﾎﾞﾍﾞﾝｼﾞｬﾝｿﾝ･ﾁﾗｼﾎﾟｽﾀｰ印刷 | AA28: 2011-05-31 | AB28: ｺﾗﾎﾞﾍﾞﾝ | AC28: 印刷ｺﾗﾎﾞﾍﾞﾝ
F29: 指事 | H29: 通信 | J29: 320 | M29: Ｎｏ．376 | O29: 0 | Q29: 320 | T29: ﾔﾏﾄ運輸㈱滋賀主管支店 | Y29: 4月ﾒｰﾙ便 | AA29: 2011-05-31 | AB29: 自主PR | AC29: 通信自主PR
F30: 指事 | H30: 通信 | J30: 20,160 | M30: Ｎｏ．376 | O30: 0 | Q30: 20,160 | T30: ﾔﾏﾄ運輸㈱滋賀主管支店 | Y30: 4月ﾒｰﾙ便 | AA30: 2011-05-31 | AB30: ｱｰﾄﾒｲﾂ | AC30: 通信ｱｰﾄﾒｲﾂ
F31: 指事 | H31: 通信 | J31: 15,280 | M31: Ｎｏ．376 | O31: 0 | Q31: 15,280 | T31: ﾔﾏﾄ運輸㈱滋賀主管支店 | Y31: 4月ﾒｰﾙ便 | AA31: 2011-05-31 | AB31: ﾓﾉﾗﾝ | AC31: 通信ﾓﾉﾗﾝ
F32: 指事 | H32: 食糧 | J32: 10,500 | M32: Ｎｏ．357 | O32: 0 | Q32: 10,500 | T32: 小林事務機㈱ | Y32: 音活ｹｰﾀﾘﾝｸﾞ | AA32: 2011-05-31 | AB32: 音活 | AC32: 食糧音活
F33: 指事 | H33: 使賃 | J33: 1,900 | M33: 振替178 | O33: 0 | Q33: 1,900 | T33: 資金前渡員/西日本高速道路㈱ | Y33: 有料道路通行料5月分 | AA33: 2011-06-01 | AB33: 音活 | AC33: 使賃音活
F34: 指事 | H34: 報償 | J34: 30,000 | M34: Ｎｏ．354 | O34: 0 | Q34: 30,000 | T34: 資金前渡員 | Y34: 審査員謝礼 | AA34: 2011-06-07 | AB34: 湖国 | AC34: 報償湖国
F35: 指事 | H35: 旅費 | J35: 3,340 | M35: Ｎｏ．354 | O35: 0 | Q35: 3,340 | T35: 資金前渡員 | Y35: 審査員旅費 | AA35: 2011-06-07 | AB35: 湖国 | AC35: 旅費湖国
F36: 指事 | H36: 使賃 | J36: 500 | M36: Ｎｏ．425 | O36: 0 | Q36: 500 | T36: 西日本高速道路㈱ | Y36: ETCｶｰﾄﾞ有料道路通行料4月 | AA36: 2011-06-10 | AB36: 音活 | AC36: 使賃音活
F37: 指事 | H37: 委託 | J37: 81,900 | M37: Ｎｏ．144 | O37: 0 | Q37: 81,900 | T37: （有）でじまむﾜｰｶｰｽﾞ | Y37: 5月分あーとねっと管理保守委託業務 | AA37: 2011-06-15 | AB37: ねっと | AC37: 委託ねっと
F38: 指事 | H38: 委託 | J38: 42,000 | M38: Ｎｏ．355 | O38: 0 | Q38: 42,000 | T38: ㈱ﾋﾞﾜﾛｰﾌﾞ | Y38: 5月分あーとねっとﾚﾝﾀﾙｻｰﾊﾞｰ管理業務 | AA38: 2011-06-15 | AB38: ねっと | AC38: 委託ねっと
F39: 指事 | H39: 消耗 | J39: 3,735 | M39: Ｎｏ．400 | O39: 0 | Q39: 3,735 | T39: ㈱平柿文仙堂 | Y39: 5月文化芸術情報雑誌 | AA39: 2011-06-15 | AB39: ｲﾝﾌｫ | AC39: 消耗ｲﾝﾌｫ
F40: 指事 | H40: 広告 | J40: 7,350 | M40: Ｎｏ．293 | O40: 0 | Q40: 7,350 | T40: 生活協同組合ｺｰﾌﾟしが | Y40: らぶめる広告掲載 | AA40: 2011-06-15 | AB40: ﾓﾉﾗﾝ | AC40: 広告ﾓﾉﾗﾝ
F41: 指事 | H41: 使賃 | J41: 18,000 | M41: Ｎｏ．420 | O41: 0 | Q41: 18,000 | T41: ㈱日邦ﾚﾝﾀｶｰｼｽﾃﾑ | Y41: ﾚﾝﾀｶｰ料 | AA41: 2011-06-15 | AB41: 音活 | AC41: 使賃音活
F42: 指事 | H42: 使賃 | J42: 7,400 | M42: Ｎｏ．418 | O42: 0 | Q42: 7,400 | T42: ｵﾑﾛﾝｸﾚｼﾞｯﾄｻｰﾋﾞｽ㈱ | Y42: 4月ﾀｸｼｰ代 | AA42: 2011-06-15 | AB42: 音活 | AC42: 使賃音活
F43: 指事 | H43: 消耗 | J43: 15,750 | M43: Ｎｏ．384 | O43: 0 | Q43: 15,750 | T43: ㈱広宣 | Y43: 告知看板 | AA43: 2011-06-15 | AB43: ﾓﾉﾗﾝ | AC43: 消耗ﾓﾉﾗﾝ
F44: 指事 | H44: 広告 | J44: 57,750 | M44: Ｎｏ．414 | O44: 0 | Q44: 57,750 | T44: ㈱滋賀ﾘﾋﾞﾝｸﾞ新聞社 | Y44: 5/21ﾘﾋﾞﾝｸﾞ新聞広告掲載 | AA44: 2011-06-15 | AB44: ﾓﾉﾗﾝ | AC44: 広告ﾓﾉﾗﾝ
F45: 指事 | H45: 印刷 | J45: 97,650 | M45: Ｎｏ．419 | O45: 0 | Q45: 97,650 | T45: 大津紙業写真印刷㈱ | Y45: 音活ｶﾞﾗｺﾝｻｰﾄﾁﾗｼ | AA45: 2011-06-15 | AB45: 音活 | AC45: 印刷音活
F46: 指事 | H46: 消耗 | J46: 7,508 | M46: Ｎｏ．353 | O46: 0 | Q46: 7,508 | T46: ｷﾞｬﾗﾘｰ風の門草津店 | Y46: ﾎﾟｽﾀｰｶﾗｰ等大津絵体験 | AA46: 2011-06-15 | AB46: ｱｰﾄﾒｲﾂ | AC46: 消耗ｱｰﾄﾒｲﾂ
F47: 指事 | H47: 消耗 | J47: 29,400 | M47: Ｎｏ．383 | O47: 0 | Q47: 29,400 | T47: （有）ﾛｽﾞｳｪﾙ | Y47: ﾜｲﾔﾚｽﾏｲｸ | AA47: 2011-06-15 | AB47: ｱｰﾄﾒｲﾂ | AC47: 消耗ｱｰﾄﾒｲﾂ
F48: 指事 | H48: 旅費 | J48: 24,320 | M48: Ｎｏ．480 | O48: 0 | Q48: 24,320 | T48: 資金前渡員/西日本旅客鉄道株式会社 | Y48: 演出家旅費 | AA48: 2011-06-15 | AB48: ﾐｭｰｼﾞｶﾙ | AC48: 旅費ﾐｭｰｼﾞｶﾙ
F49: 指事 | H49: 通信 | J49: 6,600 | M49: Ｎｏ．541 | O49: 0 | Q49: 6,600 | T49: 資金前渡員 | Y49: 切手 | AA49: 2011-06-28 | AB49: ｺﾗﾎﾞりっとう | AC49: 通信ｺﾗﾎﾞりっとう
F50: 指事 | H50: 旅費 | J50: 160 | M50: Ｎｏ．535 | O50: 0 | Q50: =+J50-O50 -> 160 | T50: 創造館職員 | Y50: 5月精算旅費 | AA50: 2011-06-29 | AB50: ﾎﾞﾗ | AC50: 旅費ﾎﾞﾗ
F51: 指事 | H51: 旅費 | J51: 19,290 | M51: Ｎｏ．535 | O51: 0 | Q51: 19,290 | T51: 創造館＋本部職員 | Y51: 5月精算旅費 | AA51: 2011-06-29 | AB51: 音活 | AC51: 旅費音活
F52: 指事 | H52: 旅費 | J52: 2,660 | M52: Ｎｏ．535 | O52: 0 | Q52: 2,660 | T52: 創造館職員 | Y52: 5月精算旅費 | AA52: 2011-06-29 | AB52: 自主PR | AC52: 旅費自主PR
F53: 指事 | H53: 旅費 | J53: 7,190 | M53: Ｎｏ．535 | O53: 0 | Q53: 7,190 | T53: 本部職員 | Y53: 5月精算旅費 | AA53: 2011-06-29 | AB53: ｺﾗﾎﾞ共通 | AC53: 旅費ｺﾗﾎﾞ共通
F54: 指事 | H54: 旅費 | J54: 8,141 | M54: Ｎｏ．535 | O54: 0 | Q54: 8,141 | T54: 創造館＋本部職員 | Y54: 5月精算旅費 | AA54: 2011-06-29 | AB54: ﾐｭｰｼﾞｶﾙ | AC54: 旅費ﾐｭｰｼﾞｶﾙ
F55: 指事 | H55: 旅費 | J55: 1,620 | M55: Ｎｏ．535 | O55: 0 | Q55: 1,620 | T55: 本部職員 | Y55: 5月精算旅費 | AA55: 2011-06-29 | AB55: ﾗｼﾞｵ | AC55: 旅費ﾗｼﾞｵ
F56: 指事 | H56: 使賃 | J56: 13,705 | M56: 振替296 | O56: 0 | Q56: =J56-O56 -> 13,705 | T56: 施設利用料収入振替 | Y56: 6月分自主ｻｰｸﾙ使用料補助 | AA56: 2011-06-29 | AB56: ｱｰﾄﾒｲﾂ | AC56: 使賃ｱｰﾄﾒｲﾂ
F57: 指事 | H57: 委託 | J57: 10,320 | M57: Ｎｏ．490 | O57: 0 | Q57: 10,320 | T57: （社）草津市ｼﾙﾊﾞｰ人材ｾﾝﾀｰ | Y57: ﾗｼﾞｵ深夜便駐車場案内 | AA57: 2011-06-30 | AB57: ﾗｼﾞｵ | AC57: 委託ﾗｼﾞｵ
F58: 指事 | H58: 報償 | J58: 11,111 | M58: 振替239 | O58: 1,111 | Q58: 10,000 | T58: 渡部珠代 | Y58: ﾗｼﾞｵ深夜便看護師謝礼 | AA58: 2011-06-30 | AB58: ﾗｼﾞｵ | AC58: 報償ﾗｼﾞｵ
F59: 指事 | H59: 消耗 | J59: 9,564 | M59: Ｎｏ．457 | O59: 0 | Q59: 9,564 | T59: 小林事務機㈱ | Y59: ﾗｼﾞｵ深夜便消耗品 | AA59: 2011-06-30 | AB59: ﾗｼﾞｵ | AC59: 消耗ﾗｼﾞｵ
F60: 指事 | H60: 食糧 | J60: 7,000 | M60: Ｎｏ．590 | O60: 0 | Q60: 7,000 | T60: ほわいとｸﾗﾌﾞ | Y60: 5/6実行委員会ｺｰﾋｰ提供 | AA60: 2011-06-30 | AB60: ｱｰﾄﾒｲﾂ | AC60: 食糧ｱｰﾄﾒｲﾂ
F61: 指事 | H61: 手数 | J61: 13,650 | M61: Ｎｏ．591 | O61: 0 | Q61: 13,650 | T61: ㈱JEUGIA | Y61: ｺﾗﾎﾞｼﾞｬｽﾞCﾋﾟｱﾉ調律料 | AA61: 2011-06-30 | AB61: ｺﾗﾎﾞﾍﾞﾝ | AC61: 手数ｺﾗﾎﾞﾍﾞﾝ
F62: 指事 | H62: 委託 | J62: 15,000 | M62: Ｎｏ．592 | O62: 0 | Q62: 15,000 | T62: ㈱EGS | Y62: ｺﾗﾎﾞｼﾞｬｽﾞC音響業務委託 | AA62: 2011-06-30 | AB62: ｺﾗﾎﾞﾍﾞﾝ | AC62: 委託ｺﾗﾎﾞﾍﾞﾝ
F63: 指事 | H63: 印刷 | J63: 90,300 | M63: Ｎｏ．593 | O63: 0 | Q63: 90,300 | T63: 大津紙業写真印刷㈱ | Y63: ｺﾗﾎﾞ湖西芸能Fﾁﾗｼ･ﾎﾟｽﾀｰ印刷 | AA63: 2011-06-30 | AB63: ｺﾗﾎﾞ湖西 | AC63: 印刷ｺﾗﾎﾞ湖西
F64: 指事 | H64: 印刷 | J64: 60,900 | M64: Ｎｏ．594 | O64: 0 | Q64: 60,900 | T64: 大津紙業写真印刷㈱ | Y64: ｺﾗﾎﾞ湖西芸能Fﾊﾟﾝﾌﾚｯﾄ印刷 | AA64: 2011-06-30 | AB64: ｺﾗﾎﾞ湖西 | AC64: 印刷ｺﾗﾎﾞ湖西
F65: 指事 | H65: 報償 | J65: 70,000 | M65: 振替263 | O65: 7,000 | Q65: 63,000 | T65: 瀬川満貴子 | Y65: 芸能大会お茶会運営･指導 | AA65: 2011-06-30 | AB65: ｱｰﾄﾒｲﾂ | AC65: 報償ｱｰﾄﾒｲﾂ
F66: 指事 | H66: 報償 | J66: 10,000 | M66: Ｎｏ．596 | O66: 0 | Q66: 10,000 | T66: 西野公一 | Y66: 芸能大会司会料 | AA66: 2011-06-30 | AB66: ｱｰﾄﾒｲﾂ | AC66: 報償ｱｰﾄﾒｲﾂ
F67: 指事 | H67: 印刷 | J67: 44,100 | M67: Ｎｏ．602 | O67: 0 | Q67: 44,100 | T67: 大津紙業写真印刷㈱ | Y67: 芸能大会ﾌﾟﾛｸﾞﾗﾑ印刷 | AA67: 2011-06-30 | AB67: ｱｰﾄﾒｲﾂ | AC67: 印刷ｱｰﾄﾒｲﾂ
F68: 指事 | H68: 委託 | J68: 189,000 | M68: Ｎｏ．603 | O68: 0 | Q68: 189,000 | T68: （有）ﾛｽﾞｳｪﾙ | Y68: 芸能大会舞台照明音響業務委託 | AA68: 2011-06-30 | AB68: ｱｰﾄﾒｲﾂ | AC68: =CONCATENATE(H68,AB68) -> 委託ｱｰﾄﾒｲﾂ
F69: 指事 | H69: 消耗 | J69: 15,750 | M69: Ｎｏ．604 | O69: 0 | Q69: 15,750 | T69: ㈱広宣 | Y69: 音活｢夏のｶﾞﾗｺﾝｻｰﾄ｣看板作成 | AA69: 2011-06-30 | AB69: 自主PR | AC69: 消耗自主PR
F70: 指事 | H70: 通信 | J70: 49,200 | M70: Ｎｏ．607 | O70: 0 | Q70: 49,200 | T70: ﾔﾏﾄ運輸㈱滋賀主管支店 | Y70: 5月ﾒｰﾙ便 | AA70: 2011-06-30 | AB70: 湖国 | AC70: 通信湖国
F71: 指事 | H71: 旅費 | J71: 6,300 | M71: Ｎｏ．511 | O71: 0 | Q71: 6,300 | T71: ﾎﾃﾙ大昌草津 | Y71: ﾕｰｽｼｱﾀｰ演出家宿泊5/10・11 | AA71: 2011-06-30 | AB71: ﾐｭｰｼﾞｶﾙ | AC71: 旅費ﾐｭｰｼﾞｶﾙ
F72: 指事 | H72: 使賃 | J72: 13,750 | M72: 振替297 | O72: 0 | Q72: 13,750 | T72: 資金前渡員/西日本高速道路㈱ | Y72: 有料道路通行料6月分 | AA72: 2011-07-01 | AB72: 音活 | AC72: 使賃音活
F73: 指事 | H73: 使賃 | J73: 2,900 | M73: Ｎｏ．615 | O73: 0 | Q73: 2,900 | T73: 西日本高速道路㈱ | Y73: ETCｶｰﾄﾞ有料道路通行料5月 | AA73: 2011-07-11 | AB73: 音活 | AC73: 使賃音活
F74: 指事 | H74: 手数 | J74: 245,461 | M74: 振替488 | O74: 0 | Q74: 245,461 | T74: ﾓﾝﾗﾝﾁｹｯﾄ販売手数料振替 | Y74: ﾓﾉﾗﾝﾁｹｯﾄ販売手数料振替 | AA74: 2011-07-15 | AB74: ﾓﾉﾗﾝ | AC74: 手数ﾓﾉﾗﾝ
F75: 指事 | H75: 手数 | J75: 880 | M75: 振替488 | O75: 0 | Q75: 880 | T75: ﾓﾝﾗﾝﾁｹｯﾄｱｰﾄﾒｲﾂ会員補助 | Y75: ﾓﾉﾗﾝﾁｹｯﾄ販売手数料振替 | AA75: 2011-07-15 | AB75: ｱｰﾄﾒｲﾂ | AC75: 手数ｱｰﾄﾒｲﾂ
F76: 指事 | H76: 委託 | J76: 81,900 | M76: Ｎｏ．144 | O76: 0 | Q76: 81,900 | T76: （有）でじまむﾜｰｶｰｽﾞ | Y76: 6月分あーとねっと管理保守委託業務 | AA76: 2011-07-15 | AB76: ねっと | AC76: 委託ねっと
F77: 指事 | H77: 委託 | J77: 42,000 | M77: Ｎｏ．355 | O77: 0 | Q77: 42,000 | T77: ㈱ﾋﾞﾜﾛｰﾌﾞ | Y77: 6月分あーとねっとﾚﾝﾀﾙｻｰﾊﾞｰ管理業務 | AA77: 2011-07-15 | AB77: ねっと | AC77: 委託ねっと
F78: 指事 | H78: 消耗 | J78: 3,860 | M78: Ｎｏ．655 | O78: 0 | Q78: 3,860 | T78: ㈱平柿文仙堂 | Y78: 6月文化芸術情報雑誌 | AA78: 2011-07-15 | AB78: ｲﾝﾌｫ | AC78: 消耗ｲﾝﾌｫ
F79: 指事 | H79: 消耗 | J79: 5,670 | M79: Ｎｏ．625 | O79: 0 | Q79: 5,670 | T79: 小林事務機㈱ | Y79: ｷｬﾉﾝﾒﾝﾃﾅﾝｽｶｰﾄﾘｯｼﾞ | AA79: 2011-07-15 | AB79: 自主PR | AC79: 消耗自主PR
F80: 指事 | H80: 報償 | J80: 5,172,216 | M80: Ｎｏ．453 | O80: 0 | Q80: 5,172,216 | T80: ㈱NHKﾌﾟﾛﾓｰｼｮﾝ | Y80: ﾓﾉﾗﾝ公演料 | AA80: 2011-07-15 | AB80: ﾓﾉﾗﾝ | AC80: 報償ﾓﾉﾗﾝ
F81: 指事 | H81: 委託 | J81: 50,400 | M81: Ｎｏ．305 | O81: 0 | Q81: 50,400 | T81: （有）ﾛｽﾞｳｪﾙ | Y81: ﾓﾉﾗﾝ舞台音響照明業務 | AA81: 2011-07-15 | AB81: ﾓﾉﾗﾝ | AC81: 委託ﾓﾉﾗﾝ
F82: 指事 | H82: 委託 | J82: 243,060 | M82: Ｎｏ．493 | O82: 0 | Q82: 243,060 | T82: (有)ｱｰﾙｽﾀｯﾌ | Y82: ﾓﾉﾗﾝ会場設営運営 | AA82: 2011-07-15 | AB82: ﾓﾉﾗﾝ | AC82: 委託ﾓﾉﾗﾝ
F83: 指事 | H83: 委託 | J83: 17,200 | M83: Ｎｏ．494 | O83: 0 | Q83: 17,200 | T83: (社)草津市ｼﾙﾊﾞｰ人材ｾﾝﾀｰ | Y83: ﾓﾉﾗﾝ駐車場整理 | AA83: 2011-07-15 | AB83: ﾓﾉﾗﾝ | AC83: 委託ﾓﾉﾗﾝ
F84: 指事 | H84: 食糧 | J84: 5,542 | M84: Ｎｏ．657 | O84: 0 | Q84: 5,542 | T84: ㈱ﾀﾅｶﾔ | Y84: 音活ｹｰﾀﾘﾝｸﾞ | AA84: 2011-07-15 | AB84: 音活 | AC84: 食糧音活
F85: 指事 | H85: 消耗 | J85: 3,887 | M85: Ｎｏ．658 | O85: 0 | Q85: 3,887 | T85: ㈱ﾀﾅｶﾔ | Y85: 音活消耗品 | AA85: 2011-07-15 | AB85: 音活 | AC85: 消耗音活
F86: 指事 | H86: 消耗 | J86: 5,765 | M86: Ｎｏ．659 | O86: 0 | Q86: 5,765 | T86: 小林事務機㈱ | Y86: ﾓﾉﾗﾝ消耗品 | AA86: 2011-07-15 | AB86: ﾓﾉﾗﾝ | AC86: 消耗ﾓﾉﾗﾝ
F87: 指事 | H87: 印刷 | J87: 71,400 | M87: Ｎｏ．662 | O87: 0 | Q87: 71,400 | T87: ㈱ｽﾏｲ印刷工業 | Y87: 募集要項ﾁﾗｼ印刷 | AA87: 2011-07-15 | AB87: ﾌｧｰｽﾄ | AC87: 印刷ﾌｧｰｽﾄ
F88: 指事 | H88: 食糧 | J88: 10,503 | M88: Ｎｏ．660 | O88: 0 | Q88: 10,503 | T88: ㈱ﾀﾅｶﾔ | Y88: ﾓﾉﾗﾝｹｰﾀﾘﾝｸﾞ | AA88: 2011-07-15 | AB88: ﾓﾉﾗﾝ | AC88: 食糧ﾓﾉﾗﾝ
F89: 指事 | H89: 食糧 | J89: 9,960 | M89: Ｎｏ．661 | O89: 0 | Q89: 9,960 | T89: 小林事務機㈱ | Y89: ﾓﾉﾗﾝｹｰﾀﾘﾝｸﾞ | AA89: 2011-07-15 | AB89: ﾓﾉﾗﾝ | AC89: 食糧ﾓﾉﾗﾝ
F90: 指事 | H90: 報償 | J90: 42,000 | M90: Ｎｏ．702 | O90: 0 | Q90: 42,000 | T90: ㈱EGS | Y90: 湖西芸能司会料 | AA90: 2011-07-15 | AB90: ｺﾗﾎﾞ湖西 | AC90: 報償ｺﾗﾎﾞ湖西
F91: 指事 | H91: 消耗 | J91: 9,780 | M91: Ｎｏ．688 | O91: 0 | Q91: 9,780 | T91: 朝日新聞ｻｰﾋﾞｽｱﾝｶｰ ASA南笠 | Y91: 朝日新聞4･5･6月 | AA91: 2011-07-15 | AB91: ｲﾝﾌｫ | AC91: 消耗ｲﾝﾌｫ
F92: 指事 | H92: 消耗 | J92: 9,780 | M92: Ｎｏ．689 | O92: 0 | Q92: 9,780 | T92: 毎日新聞草津南販売所 赤土勝基 | Y92: 毎日新聞4･5･6月 | AA92: 2011-07-15 | AB92: ｲﾝﾌｫ | AC92: 消耗ｲﾝﾌｫ
F93: 指事 | H93: 消耗 | J93: 9,780 | M93: Ｎｏ．690 | O93: 0 | Q93: 9,780 | T93: ㈱ﾜｲｹｲｴｽ | Y93: 読売新聞4･5･6月 | AA93: 2011-07-15 | AB93: ｲﾝﾌｫ | AC93: 消耗ｲﾝﾌｫ
F94: 指事 | H94: 消耗 | J94: 9,000 | M94: Ｎｏ．692 | O94: 0 | Q94: 9,000 | T94: 中日新聞草津専売店 黄瀬晃司 | Y94: 中日新聞4･5･6月 | AA94: 2011-07-15 | AB94: ｲﾝﾌｫ | AC94: 消耗ｲﾝﾌｫ
F95: 指事 | H95: 消耗 | J95: 9,720 | M95: Ｎｏ．693 | O95: 0 | Q95: 9,720 | T95: ㈱京都新聞南草津販売所 | Y95: 京都新聞4･5･6月 | AA95: 2011-07-15 | AB95: ｲﾝﾌｫ | AC95: 消耗ｲﾝﾌｫ
F96: 指事 | H96: 報償 | J96: 50,000 | M96: 振替377 | O96: 5,000 | Q96: 45,000 | T96: 資金前渡員 | Y96: ﾎﾞﾗ入門講座講師謝礼 | AA96: 2011-07-22 | AB96: ﾎﾞﾗ | AC96: 報償ﾎﾞﾗ
F97: 指事 | H97: 旅費 | J97: 10,140 | M97: 振替378 | O97: 1,014 | Q97: 9,126 | T97: 資金前渡員 | Y97: ﾎﾞﾗ入門講座講師旅費 | AA97: 2011-07-22 | AB97: ﾎﾞﾗ | AC97: 旅費ﾎﾞﾗ
F98: 指事 | H98: 通信 | J98: 50,000 | M98: Ｎｏ．759 | O98: 0 | Q98: 50,000 | T98: 資金前渡員 | Y98: 切手購入 | AA98: 2011-07-22 | AB98: 自主PR | AC98: 通信自主PR
F99: 指事 | H99: 使賃 | J99: 11,245 | M99: 振替460 | O99: 0 | Q99: 11,245 | T99: 施設利用料収入振替 | Y99: 7月分自主ｻｰｸﾙ使用料補助 | AA99: 2011-07-27 | AB99: ｱｰﾄﾒｲﾂ | AC99: 使賃ｱｰﾄﾒｲﾂ
F100: 指事 | H100: 旅費 | J100: 7,810 | M100: Ｎｏ．770 | O100: 0 | Q100: =+J100-O100 -> 7,810 | T100: 創造館職員 | Y100: 6月精算旅費 | AA100: 2011-07-28 | AB100: ﾌｧｰｽﾄ | AC100: 旅費ﾌｧｰｽﾄ
F101: 指事 | H101: 旅費 | J101: 57,460 | M101: Ｎｏ．770 | O101: 0 | Q101: 57,460 | T101: 創造館＋本部職員 | Y101: 6月精算旅費 | AA101: 2011-07-28 | AB101: 音活 | AC101: 旅費音活
F102: 指事 | H102: 旅費 | J102: 36,409 | M102: Ｎｏ．770 | O102: 0 | Q102: 36,409 | T102: 創造館＋本部職員 | Y102: 6月精算旅費 | AA102: 2011-07-28 | AB102: 自主PR | AC102: 旅費自主PR
F103: 指事 | H103: 旅費 | J103: 11,800 | M103: Ｎｏ．770 | O103: 0 | Q103: 11,800 | T103: 創造館＋本部職員 | Y103: 6月精算旅費 | AA103: 2011-07-28 | AB103: ｺﾗﾎﾞ共通 | AC103: 旅費ｺﾗﾎﾞ共通
F104: 指事 | H104: 旅費 | J104: 5,699 | M104: Ｎｏ．770 | O104: 0 | Q104: 5,699 | T104: 創造館職員 | Y104: 6月精算旅費 | AA104: 2011-07-28 | AB104: ﾐｭｰｼﾞｶﾙ | AC104: 旅費ﾐｭｰｼﾞｶﾙ
F105: 指事 | H105: 旅費 | J105: 1,160 | M105: Ｎｏ．770 | O105: 0 | Q105: 1,160 | T105: 創造館＋本部職員 | Y105: 6月精算旅費 | AA105: 2011-07-28 | AB105: ﾗｼﾞｵ | AC105: 旅費ﾗｼﾞｵ
F106: 指事 | H106: 旅費 | J106: 1,350 | M106: Ｎｏ．770 | O106: 0 | Q106: 1,350 | T106: 創造館＋本部職員 | Y106: 6月精算旅費 | AA106: 2011-07-28 | AB106: 湖国 | AC106: 旅費湖国
F107: 指事 | H107: 旅費 | J107: 770 | M107: Ｎｏ．770 | O107: 0 | Q107: 770 | T107: 創造館職員 | Y107: 6月精算旅費 | AA107: 2011-07-28 | AB107: ﾓﾉﾗﾝ | AC107: 旅費ﾓﾉﾗﾝ
F108: 指事 | H108: 広告 | J108: 52,500 | M108: Ｎｏ．670 | O108: 0 | Q108: =J108-O108 -> 52,500 | T108: ㈱ｴﾌｴﾑ滋賀 | Y108: ｴﾌｴﾑ滋賀告知放送 | AA108: 2011-07-29 | AB108: ﾓﾉﾗﾝ | AC108: 広告ﾓﾉﾗﾝ
F109: 指事 | H109: 広告 | J109: 57,750 | M109: Ｎｏ．469 | O109: 0 | Q109: 57,750 | T109: ㈱滋賀ﾘﾋﾞﾝｸﾞ新聞社 | Y109: 6/4ﾘﾋﾞﾝｸﾞ新聞広告 | AA109: 2011-07-29 | AB109: 湖国 | AC109: 広告湖国
F110: 指事 | H110: 広告 | J110: 57,750 | M110: Ｎｏ．600 | O110: 0 | Q110: 57,750 | T110: ㈱滋賀ﾘﾋﾞﾝｸﾞ新聞社 | Y110: 6/25ﾘﾋﾞﾝｸﾞ新聞広告 | AA110: 2011-07-29 | AB110: 自主PR | AC110: 広告自主PR
F111: 指事 | H111: 消耗 | J111: 15,750 | M111: Ｎｏ．761 | O111: 0 | Q111: 15,750 | T111: ㈱広宣 | Y111: 告知看板作成 | AA111: 2011-07-29 | AB111: ｴﾚｼﾞｰ | AC111: 消耗ｴﾚｼﾞｰ
F112: 指事 | H112: 消耗 | J112: 210,000 | M112: Ｎｏ．762 | O112: 0 | Q112: 210,000 | T112: (財)可児市文化芸術振興財団 | Y112: ﾁﾗｼ･ﾎﾟｽﾀｰ買取 | AA112: 2011-07-29 | AB112: ｴﾚｼﾞｰ | AC112: 消耗ｴﾚｼﾞｰ
F113: 指事 | H113: 委託 | J113: 21,000 | M113: Ｎｏ．740 | O113: 0 | Q113: 21,000 | T113: (有)ﾛｽﾞｳｪﾙ | Y113: 6/25信楽ﾎｰﾙ音活舞台音響業務 | AA113: 2011-07-29 | AB113: 音活 | AC113: 委託音活
F114: 指事 | H114: 消耗 | J114: 40,334 | M114: Ｎｏ．685 | O114: 0 | Q114: 40,334 | T114: ㈱ﾀﾅｶﾔ | Y114: 音活上質紙等消耗品 | AA114: 2011-07-29 | AB114: 音活 | AC114: 消耗音活
F115: 指事 | H115: 委託 | J115: 145,950 | M115: Ｎｏ．707 | O115: 0 | Q115: 145,950 | T115: (特非)びぃめーる企画室 | Y115: 6月号情報誌等業務 | AA115: 2011-07-29 | AB115: 情報紙 | AC115: 委託情報紙
F116: 指事 | H116: 使賃 | J116: 61,943 | M116: Ｎｏ．741 | O116: 0 | Q116: 61,943 | T116: (社)日本音楽著作権協会 | Y116: ﾓﾉﾗﾝ音楽著作権料 | AA116: 2011-07-29 | AB116: ﾓﾉﾗﾝ | AC116: 使賃ﾓﾉﾗﾝ
F117: 指事 | H117: 消耗 | J117: 9,600 | M117: Ｎｏ．691 | O117: 0 | Q117: 9,600 | T117: 産経新聞北嶋新聞舗 北嶋唯男 | Y117: 産経新聞4～6月分購読料 | AA117: 2011-07-29 | AB117: ｲﾝﾌｫ | AC117: 消耗ｲﾝﾌｫ
F118: 指事 | H118: 通信 | J118: 20,080 | M118: Ｎｏ．833 | O118: 0 | Q118: 20,080 | T118: ﾔﾏﾄ運輸㈱滋賀主管支店 | Y118: 6月ﾒｰﾙ便 | AA118: 2011-07-29 | AB118: 音活 | AC118: 通信音活
F119: 指事 | H119: 通信 | J119: 7,840 | M119: Ｎｏ．833 | O119: 0 | Q119: 7,840 | T119: ﾔﾏﾄ運輸㈱滋賀主管支店 | Y119: 6月ﾒｰﾙ便 | AA119: 2011-07-29 | AB119: ｱｰﾄﾒｲﾂ | AC119: 通信ｱｰﾄﾒｲﾂ
F120: 指事 | H120: 通信 | J120: 46,480 | M120: Ｎｏ．833 | O120: 0 | Q120: 46,480 | T120: ﾔﾏﾄ運輸㈱滋賀主管支店 | Y120: 6月ﾒｰﾙ便 | AA120: 2011-07-29 | AB120: 湖国 | AC120: 通信湖国
F121: 指事 | H121: 通信 | J121: 480 | M121: Ｎｏ．833 | O121: 0 | Q121: 480 | T121: ﾔﾏﾄ運輸㈱滋賀主管支店 | Y121: 6月ﾒｰﾙ便 | AA121: 2011-07-29 | AB121: 自主PR | AC121: 通信自主PR
F122: 指事 | H122: 保険 | J122: 20,200 | M122: Ｎｏ．841 | O122: 0 | Q122: 20,200 | T122: 資金前渡員/(財)ｽﾎﾟｰﾂ安全協会 | Y122: ﾕｰｽｼｱﾀｰ傷害保険料 | AA122: 2011-07-29 | AB122: ﾐｭｰｼﾞｶﾙ | AC122: 保険ﾐｭｰｼﾞｶﾙ
F123: 指事 | H123: 手数 | J123: 200 | M123: 振替487 | O123: 0 | Q123: 200 | T123: 音活｢夏のｶﾞﾗｺﾝｻｰﾄ｣ﾁｹｯﾄｱｰﾄﾒｲﾂ会員補助 | Y123: ｶﾞﾗｺﾝｻｰﾄﾁｹｯﾄ販売手数料振替 | AA123: 2011-07-30 | AB123: ｱｰﾄﾒｲﾂ | AC123: 手数ｱｰﾄﾒｲﾂ
F124: 指事 | H124: 保険 | J124: 3,640 | M124: Ｎｏ．880 | O124: 0 | Q124: 3,640 | T124: 資金前渡員 | Y124: ﾎﾞﾗﾝﾃｨｱ活動保険料 | AA124: 2011-08-03 | AB124: ﾎﾞﾗ | AC124: 保険ﾎﾞﾗ
F125: 指事 | H125: 使賃 | J125: 450 | M125: Ｎｏ．918 | O125: 0 | Q125: 450 | T125: 西日本高速道路㈱ | Y125: ETCｶｰﾄﾞ有料道路通行料6月 | AA125: 2011-08-10 | AB125: 音活 | AC125: 使賃音活
F126: 指事 | H126: 委託 | J126: 81,900 | M126: Ｎｏ．144 | O126: 0 | Q126: 81,900 | T126: （有）でじまむﾜｰｶｰｽﾞ | Y126: 6月分あーとねっと管理保守委託業務 | AA126: 2011-08-12 | AB126: ねっと | AC126: 委託ねっと
F127: 指事 | H127: 委託 | J127: 42,000 | M127: Ｎｏ．355 | O127: 0 | Q127: 42,000 | T127: ㈱ﾋﾞﾜﾛｰﾌﾞ | Y127: 6月分あーとねっとﾚﾝﾀﾙｻｰﾊﾞｰ管理業務 | AA127: 2011-08-12 | AB127: ねっと | AC127: 委託ねっと
F128: 指事 | H128: 委託 | J128: 145,950 | M128: Ｎｏ．707 | O128: 0 | Q128: 145,950 | T128: (特非)びぃめーる企画室 | Y128: 8月号情報誌等業務 | AA128: 2011-08-12 | AB128: 情報紙 | AC128: 委託情報紙
F129: 指事 | H129: 消耗 | J129: 3,850 | M129: Ｎｏ．926 | O129: 0 | Q129: 3,850 | T129: ㈱平柿文仙堂 | Y129: 7月文化芸術情報雑誌 | AA129: 2011-08-16 | AB129: ｲﾝﾌｫ | AC129: 消耗ｲﾝﾌｫ
F130: 指事 | H130: 印刷 | J130: 136,500 | M130: Ｎｏ．835 | O130: 0 | Q130: 136,500 | T130: 大津紙業写真印刷㈱ | Y130: 7/7新聞折込ﾁﾗｼ印刷 | AA130: 2011-08-16 | AB130: 自主PR | AC130: 印刷自主PR
F131: 指事 | H131: 手数 | J131: 157,500 | M131: Ｎｏ．835 | O131: 0 | Q131: 157,500 | T131: 大津紙業写真印刷㈱ | Y131: 7/7新聞折込手数料 | AA131: 2011-08-16 | AB131: 自主PR | AC131: 手数自主PR
F132: 指事 | H132: 食糧 | J132: 1,000 | M132: Ｎｏ．836 | O132: 0 | Q132: 1,000 | T132: ほわいとｸﾗﾌﾞ | Y132: 芸能大会司会者弁当 | AA132: 2011-08-16 | AB132: ｱｰﾄﾒｲﾂ | AC132: =CONCATENATE(H132,AB132) -> 食糧ｱｰﾄﾒｲﾂ
F133: 指事 | H133: 印刷 | J133: 66,150 | M133: Ｎｏ．837 | O133: 0 | Q133: 66,150 | T133: 宮川印刷㈱ | Y133: 劇場ﾎﾞﾗﾝﾃｨｱ募集ﾁﾗｼ印刷 | AA133: 2011-08-16 | AB133: ﾎﾞﾗ | AC133: 印刷ﾎﾞﾗ
F134: 指事 | H134: 広告 | J134: 57,750 | M134: Ｎｏ．601 | O134: 0 | Q134: 57,750 | T134: ㈱滋賀ﾘﾋﾞﾝｸﾞ新聞社 | Y134: 7/2ﾘﾋﾞﾝｸﾞ滋賀広告 | AA134: 2011-08-16 | AB134: 自主PR | AC134: 広告自主PR
F135: 指事 | H135: 広告 | J135: 42,000 | M135: Ｎｏ．838 | O135: 0 | Q135: 42,000 | T135: ㈱えふえむ草津 | Y135: えふえむ草津放送告知4本分 | AA135: 2011-08-16 | AB135: 自主PR | AC135: 広告自主PR
F136: 指事 | H136: 委託 | J136: 84,000 | M136: Ｎｏ．883 | O136: 0 | Q136: 84,000 | T136: （有）ﾛｽﾞｳｪﾙ | Y136: ｶﾞﾗｺﾝｻｰﾄ7/29･30舞台照明音響業務 | AA136: 2011-08-16 | AB136: 音活 | AC136: 委託音活
F137: 指事 | H137: 旅費 | J137: 27,900 | M137: Ｎｏ．881 | O137: 0 | Q137: 27,900 | T137: 滋賀県職員生協 | Y137: ﾕｰｽｼｱﾀｰｵｰﾃﾞｨｼｮﾝ演出家旅費 | AA137: 2011-08-16 | AB137: ﾐｭｰｼﾞｶﾙ | AC137: 旅費ﾐｭｰｼﾞｶﾙ
F138: 指事 | H138: 食糧 | J138: 3,000 | M138: Ｎｏ．882 | O138: 0 | Q138: 3,000 | T138: ほわいとｸﾗﾌﾞ | Y138: ﾎﾞﾗﾝﾃｨｱ入門講座講師弁当 | AA138: 2011-08-16 | AB138: ﾎﾞﾗ | AC138: 食糧ﾎﾞﾗ
F139: 指事 | H139: 消耗 | J139: 24,150 | M139: Ｎｏ．906 | O139: 0 | Q139: 24,150 | T139: ㈱ﾀﾅｶﾔ | Y139: 色上質紙 | AA139: 2011-08-16 | AB139: ﾐｭｰｼﾞｶﾙ | AC139: 消耗ﾐｭｰｼﾞｶﾙ
F140: 指事 | H140: 使賃 | J140: 1,155 | M140: Ｎｏ．908 | O140: 0 | Q140: =J140-O140 -> 1,155 | T140: （社）日本音楽著作権協会 | Y140: りっとう演劇祭音楽著作権料 | AA140: 2011-08-16 | AB140: ｺﾗﾎﾞりっとう | AC140: 使賃ｺﾗﾎﾞりっとう
F141: 指事 | H141: 手数 | J141: 46,200 | M141: Ｎｏ．904 | O141: 0 | Q141: 46,200 | T141: ﾛﾏﾝ楽器㈱ | Y141: ｶﾞﾗｺﾝｻｰﾄﾋﾟｱﾉ調律料 | AA141: 2011-08-16 | AB141: 音活 | AC141: 手数音活
F142: 指事 | H142: 消耗 | J142: 15,120 | M142: Ｎｏ．905 | O142: 0 | Q142: 15,120 | T142: ㈱ﾀﾅｶﾔ | Y142: ﾌﾟﾘﾝﾀ用紙 | AA142: 2011-08-16 | AB142: ﾎﾞﾗ | AC142: 消耗ﾎﾞﾗ
F143: 指事 | H143: 消耗 | J143: 22,365 | M143: Ｎｏ．907 | O143: 0 | Q143: 22,365 | T143: ㈱ﾀﾅｶﾔ | Y143: ﾌﾟﾘﾝﾀ用紙 | AA143: 2011-08-16 | AB143: 湖国 | AC143: 消耗湖国
F144: 指事 | H144: 消耗 | J144: 32,340 | M144: Ｎｏ．895 | O144: 0 | Q144: 32,340 | T144: ㈱宝文堂 | Y144: ｺﾋﾟｰ用紙代 | AA144: 2011-08-16 | AB144: ｺﾗﾎﾞりっとう | AC144: 消耗ｺﾗﾎﾞりっとう
F145: 指事 | H145: 報償 | J145: 12,000 | M145: Ｎｏ．897 | O145: 0 | Q145: 12,000 | T145: 北澤亜沙子 | Y145: りっとう演劇祭司会料 | AA145: 2011-08-16 | AB145: ｺﾗﾎﾞりっとう | AC145: 報償ｺﾗﾎﾞりっとう
F146: 指事 | H146: 委託 | J146: 56,700 | M146: Ｎｏ．896 | O146: 0 | Q146: 56,700 | T146: ㈱ｹｲﾐｯｸｽ | Y146: りっとう演劇祭舞台音響業務 | AA146: 2011-08-16 | AB146: ｺﾗﾎﾞりっとう | AC146: 委託ｺﾗﾎﾞりっとう
F147: 指事 | H147: 印刷 | J147: 32,300 | M147: Ｎｏ．898 | O147: 0 | Q147: 32,300 | T147: 栗東演劇祭実行実行委員会 会計 | Y147: りっとう演劇祭ﾎﾟｽﾀｰﾁﾗｼ印刷立替分 | AA147: 2011-08-16 | AB147: ｺﾗﾎﾞりっとう | AC147: 印刷ｺﾗﾎﾞりっとう
F148: 指事 | H148: 委託 | J148: 88,888 | M148: 振替486 | O148: 8,888 | Q148: 80,000 | T148: 上条善司 | Y148: 湖西芸能ﾌｪｽ舞台監督料 | AA148: 2011-08-16 | AB148: ｺﾗﾎﾞ湖西 | AC148: 委託ｺﾗﾎﾞ湖西
F149: 指事 | H149: 委託 | J149: 220,000 | M149: 振替491 | O149: 22,000 | Q149: 198,000 | T149: 森田智子 | Y149: りっとう演劇祭舞台照明業務 | AA149: 2011-08-16 | AB149: ｺﾗﾎﾞりっとう | AC149: 委託ｺﾗﾎﾞりっとう
F150: 指事 | H150: 委託 | J150: 795,900 | M150: Ｎｏ．890 | O150: 0 | Q150: 795,900 | T150: （有）ﾛｽﾞｳｪﾙ | Y150: 湖西ﾌｪｽ舞台照明音響業務 | AA150: 2011-08-16 | AB150: ｺﾗﾎﾞ湖西 | AC150: 委託ｺﾗﾎﾞ湖西
F151: 指事 | H151: 消耗 | J151: 400 | M151: Ｎｏ．1,059 | O151: 0 | Q151: 400 | T151: 資金前渡員 | Y151: 収入印紙 | AA151: 2011-08-26 | AB151: 湖国 | AC151: 消耗湖国
F152: 指事 | H152: 広告 | J152: 7,350 | M152: Ｎｏ．917 | O152: 0 | Q152: 7,350 | T152: 生活協同組合ｺｰﾌﾟしが | Y152: 8月1回生協ぱくぱくｴｺｰ広告掲載料 | AA152: 2011-08-31 | AB152: ｴﾚｼﾞｰ | AC152: 広告ｴﾚｼﾞｰ
F153: 指事 | H153: 印刷 | J153: 78,750 | M153: Ｎｏ．980 | O153: 0 | Q153: 78,750 | T153: 宮川印刷㈱ | Y153: 出演者募集ﾁﾗｼ | AA153: 2011-08-31 | AB153: ﾐｭｰｼﾞｶﾙ | AC153: 印刷ﾐｭｰｼﾞｶﾙ
F154: 指事 | H154: 旅費 | J154: 12,600 | M154: Ｎｏ．1,008 | O154: 0 | Q154: 12,600 | T154: ﾎﾃﾙ大昌草津 | Y154: 演出家宿泊 | AA154: 2011-08-31 | AB154: ﾐｭｰｼﾞｶﾙ | AC154: 旅費ﾐｭｰｼﾞｶﾙ
F155: 指事 | H155: 印刷 | J155: 39,900 | M155: Ｎｏ．1,009 | O155: 0 | Q155: 39,900 | T155: 宮川印刷㈱ | Y155: ｽﾀｯﾌ募集ﾁﾗｼ | AA155: 2011-08-31 | AB155: ﾐｭｰｼﾞｶﾙ | AC155: 印刷ﾐｭｰｼﾞｶﾙ
F156: 指事 | H156: 印刷 | J156: 126,000 | M156: Ｎｏ．1,010 | O156: 0 | Q156: 126,000 | T156: 大津紙業写真印刷㈱ | Y156: 文化ﾎﾞﾗﾝﾃｨｱｺｰﾃﾞｨﾈｰﾀｰ養成講座募集要項 | AA156: 2011-08-31 | AB156: ﾎﾞﾗ | AC156: 印刷ﾎﾞﾗ
F157: 指事 | H157: 印刷 | J157: 40,000 | M157: Ｎｏ．1,060 | O157: 0 | Q157: 40,000 | T157: ㈱ｽﾏｲ印刷工業 | Y157: 希望が丘文化公園ｲﾍﾞﾝﾄｶﾞｲﾄﾞ印刷創造館分 | AA157: 2011-08-31 | AB157: 自主PR | AC157: 印刷自主PR
F158: 指事 | H158: 使賃 | J158: 707 | M158: Ｎｏ．1,067 | O158: 0 | Q158: 707 | T158: （社）日本音楽著作権協会 | Y158: 音活ｶﾞﾗｺﾝｻｰﾄ著作権料 | AA158: 2011-08-31 | AB158: 音活 | AC158: 使賃音活
F159: 指事 | H159: 消耗 | J159: 12,751 | M159: Ｎｏ．1,064 | O159: 0 | Q159: 12,751 | T159: ㈱ﾀﾅｶﾔ | Y159: 大型ﾌﾟﾘﾝﾀｰｲﾝｸ | AA159: 2011-08-31 | AB159: 自主PR | AC159: 消耗自主PR
F160: 指事 | H160: 通信 | J160: 12,880 | M160: Ｎｏ．1,066 | O160: 0 | Q160: 12,880 | T160: ﾔﾏﾄ運輸㈱滋賀主管支店 | Y160: 7月ﾒｰﾙ便 | AA160: 2011-08-31 | AB160: 音活 | AC160: 通信音活
F161: 指事 | H161: 通信 | J161: 4,560 | M161: Ｎｏ．1,066 | O161: 0 | Q161: 4,560 | T161: ﾔﾏﾄ運輸㈱滋賀主管支店 | Y161: 7月ﾒｰﾙ便 | AA161: 2011-08-31 | AB161: ｱｰﾄﾒｲﾂ | AC161: 通信ｱｰﾄﾒｲﾂ
F162: 指事 | H162: 通信 | J162: 2,720 | M162: Ｎｏ．1,066 | O162: 0 | Q162: 2,720 | T162: ﾔﾏﾄ運輸㈱滋賀主管支店 | Y162: 7月ﾒｰﾙ便 | AA162: 2011-08-31 | AB162: 湖国 | AC162: 通信湖国
F163: 指事 | H163: 通信 | J163: 14,480 | M163: Ｎｏ．1,066 | O163: 0 | Q163: 14,480 | T163: ﾔﾏﾄ運輸㈱滋賀主管支店 | Y163: 7月ﾒｰﾙ便 | AA163: 2011-08-31 | AB163: ｴﾚｼﾞｰ | AC163: 通信ｴﾚｼﾞｰ
F164: 指事 | H164: 通信 | J164: 21,120 | M164: Ｎｏ．1,066 | O164: 0 | Q164: 21,120 | T164: ﾔﾏﾄ運輸㈱滋賀主管支店 | Y164: 7月ﾒｰﾙ便 | AA164: 2011-08-31 | AB164: 自主PR | AC164: 通信自主PR
F165: 指事 | H165: 通信 | J165: 29,760 | M165: Ｎｏ．1,066 | O165: 0 | Q165: 29,760 | T165: ﾔﾏﾄ運輸㈱滋賀主管支店 | Y165: 7月ﾒｰﾙ便 | AA165: 2011-08-31 | AB165: ﾌｧｰｽﾄ | AC165: 通信ﾌｧｰｽﾄ
F166: 指事 | H166: 通信 | J166: 2,640 | M166: Ｎｏ．1,066 | O166: 0 | Q166: 2,640 | T166: ﾔﾏﾄ運輸㈱滋賀主管支店 | Y166: 7月ﾒｰﾙ便 | AA166: 2011-08-31 | AB166: ﾎﾞﾗ | AC166: 通信ﾎﾞﾗ
F167: 指事 | H167: 通信 | J167: 23,200 | M167: Ｎｏ．1,066 | O167: 0 | Q167: 23,200 | T167: ﾔﾏﾄ運輸㈱滋賀主管支店 | Y167: 7月ﾒｰﾙ便 | AA167: 2011-08-31 | AB167: ﾐｭｰｼﾞｶﾙ | AC167: 通信ﾐｭｰｼﾞｶﾙ
F168: 指事 | H168: 使賃 | J168: 11,195 | M168: 振替597 | O168: 0 | Q168: 11,195 | T168: 施設利用料収入振替 | Y168: 8月分自主ｻｰｸﾙ使用料補助 | AA168: 2011-08-26 | AB168: ｱｰﾄﾒｲﾂ | AC168: 使賃ｱｰﾄﾒｲﾂ
F169: 指事 | H169: 旅費 | J169: 4,680 | M169: Ｎｏ．1,018 | O169: 0 | Q169: =+J169-O169 -> 4,680 | T169: 創造館職員 | Y169: 7月精算旅費 | AA169: 2011-08-30 | AB169: ﾎﾞﾗ | AC169: 旅費ﾎﾞﾗ
F170: 指事 | H170: 旅費 | J170: 17,370 | M170: Ｎｏ．1,018 | O170: 0 | Q170: 17,370 | T170: 創造館＋本部職員 | Y170: 7月精算旅費 | AA170: 2011-08-30 | AB170: 音活 | AC170: 旅費音活
F171: 指事 | H171: 旅費 | J171: 920 | M171: Ｎｏ．1,018 | O171: 0 | Q171: 920 | T171: 創造館職員 | Y171: 7月精算旅費 | AA171: 2011-08-30 | AB171: 自主PR | AC171: 旅費自主PR
F172: 指事 | H172: 旅費 | J172: 19,050 | M172: Ｎｏ．1,018 | O172: 0 | Q172: 19,050 | T172: 創造館＋本部職員 | Y172: 7月精算旅費 | AA172: 2011-08-30 | AB172: ｺﾗﾎﾞ共通 | AC172: 旅費ｺﾗﾎﾞ共通
F173: 指事 | H173: 旅費 | J173: 770 | M173: Ｎｏ．1,018 | O173: 0 | Q173: 770 | T173: 本部 | Y173: 7月精算旅費 | AA173: 2011-08-30 | AB173: ﾐｭｰｼﾞｶﾙ | AC173: 旅費ﾐｭｰｼﾞｶﾙ
F174: 指事 | H174: 旅費 | J174: 540 | M174: Ｎｏ．1,018 | O174: 0 | Q174: 540 | T174: 創造館 | Y174: 7月精算旅費 | AA174: 2011-08-30 | AB174: ｴﾚｼﾞｰ | AC174: 旅費ｴﾚｼﾞｰ
F175: 指事 | H175: 旅費 | J175: 1,610 | M175: Ｎｏ．1,018 | O175: 0 | Q175: 1,610 | T175: 創造館 | Y175: 7月精算旅費 | AA175: 2011-08-30 | AB175: 情報紙 | AC175: 旅費情報紙
F176: 指事 | H176: 通信 | J176: 14,000 | M176: Ｎｏ．1,087 | O176: 0 | Q176: =J176-O176 -> 14,000 | T176: 資金前渡員 | Y176: 切手 | AA176: 2011-08-31 | AB176: 湖国 | AC176: 通信湖国
F177: 指事 | H177: 委託 | J177: 81,900 | M177: Ｎｏ．144 | O177: 0 | Q177: 81,900 | T177: （有）でじまむﾜｰｶｰｽﾞ | Y177: 8月分あーとねっと管理保守委託業務 | AA177: 2011-09-14 | AB177: ねっと | AC177: 委託ねっと
F178: 指事 | H178: 委託 | J178: 42,000 | M178: Ｎｏ．355 | O178: 0 | Q178: 42,000 | T178: ㈱ﾋﾞﾜﾛｰﾌﾞ | Y178: 8月分あーとねっとﾚﾝﾀﾙｻｰﾊﾞｰ管理業務 | AA178: 2011-09-14 | AB178: ねっと | AC178: 委託ねっと
F179: 指事 | H179: 広告 | J179: 57,750 | M179: Ｎｏ．1,044 | O179: 0 | Q179: 57,750 | T179: ㈱滋賀ﾘﾋﾞﾝｸﾞ新聞社 | Y179: 8/27文ﾎﾞﾗﾘﾋﾞﾝｸﾞ滋賀広告 | AA179: 2011-09-14 | AB179: 自主PR | AC179: 広告自主PR
F180: 指事 | H180: 印刷 | J180: 136,500 | M180: Ｎｏ．1,089 | O180: 0 | Q180: 136,500 | T180: 大津紙業写真印刷㈱ | Y180: 9/8新聞折込ﾁﾗｼ印刷 | AA180: 2011-09-14 | AB180: 自主PR | AC180: 印刷自主PR
F181: 指事 | H181: 手数 | J181: 157,500 | M181: Ｎｏ．1,089 | O181: 0 | Q181: 157,500 | T181: 大津紙業写真印刷㈱ | Y181: 9/8新聞折込手数料 | AA181: 2011-09-14 | AB181: 自主PR | AC181: 手数自主PR
F182: 指事 | H182: 使賃 | J182: 600 | M182: Ｎｏ．1,120 | O182: 0 | Q182: 600 | T182: ｵﾑﾛﾝｸﾚｼﾞｯﾄｻｰﾋﾞｽ㈱ | Y182: ﾀｸｼｰ借上 | AA182: 2011-09-14 | AB182: 音活 | AC182: 使賃音活
F183: 指事 | H183: 印刷 | J183: 105,000 | M183: Ｎｏ．1,122 | O183: 0 | Q183: 105,000 | T183: 宮川印刷㈱ | Y183: Sｷｯｽﾞﾁﾗｼ印刷 | AA183: 2011-09-14 | AB183: ｷｯｽﾞ | AC183: 印刷ｷｯｽﾞ
F184: 指事 | H184: 消耗 | J184: 4,100 | M184: Ｎｏ．1,123 | O184: 0 | Q184: 4,100 | T184: ㈱平柿文仙堂 | Y184: 7月文化芸術情報雑誌 | AA184: 2011-09-14 | AB184: ｲﾝﾌｫ | AC184: 消耗ｲﾝﾌｫ
F185: 指事 | H185: 印刷 | J185: 67,200 | M185: Ｎｏ．1,155 | O185: 0 | Q185: 67,200 | T185: 大津紙業写真印刷㈱ | Y185: 角2封筒作成 | AA185: 2011-09-14 | AB185: 自主PR | AC185: 印刷自主PR
F186: 指事 | H186: 印刷 | J186: 67,200 | M186: Ｎｏ．1,155 | O186: 0 | Q186: 67,200 | T186: 大津紙業写真印刷㈱ | Y186: 角2封筒作成 | AA186: 2011-09-14 | AB186: 湖国 | AC186: 印刷湖国
F187: 指事 | H187: 報償 | J187: 40,000 | M187: 振替640 | O187: 0 | Q187: 40,000 | T187: 岩城見一 | Y187: 絵画展審査謝礼 | AA187: 2011-09-14 | AB187: 湖国 | AC187: 報償湖国
F188: 指事 | H188: 報償 | J188: 50,000 | M188: 振替640 | O188: 0 | Q188: 50,000 | T188: 西久松吉雄 | Y188: 絵画展審査謝礼 | AA188: 2011-09-14 | AB188: 湖国 | AC188: 報償湖国
F189: 指事 | H189: 報償 | J189: 50,000 | M189: 振替640 | O189: 0 | Q189: 50,000 | T189: 山尾才 | Y189: 絵画展審査謝礼 | AA189: 2011-09-14 | AB189: 湖国 | AC189: 報償湖国
F190: 指事 | H190: 旅費 | J190: 960 | M190: 振替641 | O190: 0 | Q190: 960 | T190: 岩城見一 | Y190: 絵画展審査旅費 | AA190: 2011-09-14 | AB190: 湖国 | AC190: 旅費湖国
F191: 指事 | H191: 旅費 | J191: 1,760 | M191: 振替641 | O191: 0 | Q191: 1,760 | T191: 西久松吉雄 | Y191: 絵画展審査旅費 | AA191: 2011-09-14 | AB191: 湖国 | AC191: 旅費湖国
F192: 指事 | H192: 旅費 | J192: 620 | M192: 振替641 | O192: 0 | Q192: 620 | T192: 山尾才 | Y192: 絵画展審査旅費 | AA192: 2011-09-14 | AB192: 湖国 | AC192: 旅費湖国
F193: 指事 | H193: 使賃 | J193: 13,705 | M193: 振替730 | O193: 0 | Q193: 13,705 | T193: 施設利用料収入振替 | Y193: 9月分自主ｻｰｸﾙ使用料補助 | AA193: 2011-09-28 | AB193: ｱｰﾄﾒｲﾂ | AC193: 使賃ｱｰﾄﾒｲﾂ
F194: 指事 | H194: 旅費 | J194: 15,270 | M194: Ｎｏ．1,243 | O194: 0 | Q194: =+J194-O194 -> 15,270 | T194: 創造館職員 | Y194: 8月精算旅費 | AA194: 2011-09-29 | AB194: ｷｯｽﾞ | AC194: 旅費ｷｯｽﾞ
F195: 指事 | H195: 旅費 | J195: 4,650 | M195: Ｎｏ．1,243 | O195: 0 | Q195: =+J195-O195 -> 4,650 | T195: 創造館＋本部職員 | Y195: 8月精算旅費 | AA195: 2011-09-29 | AB195: ﾐｭｰｼﾞｶﾙ | AC195: 旅費ﾐｭｰｼﾞｶﾙ
F196: 指事 | H196: 旅費 | J196: 7,541 | M196: Ｎｏ．1,243 | O196: 0 | Q196: =+J196-O196 -> 7,541 | T196: 創造館職員 | Y196: 8月精算旅費 | AA196: 2011-09-29 | AB196: 自主PR | AC196: =CONCATENATE(H196,AB196) -> 旅費自主PR
F197: 指事 | H197: 旅費 | J197: 1,691 | M197: Ｎｏ．1,243 | O197: 0 | Q197: =+J197-O197 -> 1,691 | T197: 創造館＋本部職員 | Y197: 8月精算旅費 | AA197: 2011-09-29 | AB197: ｺﾗﾎﾞ共通 | AC197: 旅費ｺﾗﾎﾞ共通
F198: 指事 | H198: 旅費 | J198: 3,150 | M198: Ｎｏ．1,243 | O198: 0 | Q198: =+J198-O198 -> 3,150 | T198: 創造館職員 | Y198: 8月精算旅費 | AA198: 2011-09-29 | AB198: ｴﾚｼﾞｰ | AC198: 旅費ｴﾚｼﾞｰ
F199: 指事 | H199: 食糧 | J199: 3,780 | M199: Ｎｏ．1,191 | O199: 0 | Q199: =J199-O199 -> 3,780 | T199: ㈱南洋軒 | Y199: ﾌｧｰｽﾄRｹｰﾀﾘﾝｸﾞｻﾝﾄﾞｲｯﾁ | AA199: 2011-09-30 | AB199: ﾌｧｰｽﾄ | AC199: 食糧ﾌｧｰｽﾄ
F200: 指事 | H200: 食糧 | J200: 650 | M200: Ｎｏ．1,194 | O200: 0 | Q200: 650 | T200: ほわいとｸﾗﾌﾞ | Y200: 7/31ｵｰﾃﾞｨｼｮﾝ演出家昼食 | AA200: 2011-09-30 | AB200: ﾐｭｰｼﾞｶﾙ | AC200: 食糧ﾐｭｰｼﾞｶﾙ
F201: 指事 | H201: 消耗 | J201: 20,000 | M201: Ｎｏ．1,008 | O201: 0 | Q201: 20,000 | T201: ㈱高井看板工芸社 | Y201: さきらｼﾞｭﾆｱｵｹ懸垂幕看板作成 | AA201: 2011-09-30 | AB201: ｺﾗﾎﾞさきら | AC201: 消耗ｺﾗﾎﾞさきら
F202: 指事 | H202: 消耗 | J202: 15,750 | M202: Ｎｏ．1,201 | O202: 0 | Q202: 15,750 | T202: ㈱広宣 | Y202: ｽｰﾊﾟｰｷｯｽﾞｵｹ立看板作成 | AA202: 2011-09-30 | AB202: 自主PR | AC202: 消耗自主PR
... 1265 more rows

Sheet Sheet3 (hidden)
E8: 科目 | F8: 経 費 額 | G8: 負担No. | H8: 源泉額 | I8: 実支払額 | J8: 債権者 | K8: 備 考 | L8: 支払日 | M8: 事業名
E9: 印刷 | F9: 139,650 | G9: Ｎｏ．1,560 | H9: 0 | I9: 139,650 | J9: ㈱ｽﾏｲ印刷工業 | K9: 関ﾌｨﾙﾁﾗｼﾎﾟｽﾀｰ印刷 | L9: 2011-11-30 | M9: ｺﾗﾎﾞ関ﾌｨﾙ
E10: 印刷 | F10: 50,400 | G10: Ｎｏ．1,749 | H10: 0 | I10: 50,400 | J10: ㈱ｽﾏｲ印刷工業 | K10: 関ﾌｨﾙﾁﾗｼ増刷 | L10: 2011-12-27 | M10: ｺﾗﾎﾞ関ﾌｨﾙ
E11: 報償 | F11: 213,570 | G11: Ｎｏ．1,898 | H11: 0 | I11: 213,570 | J11: (特非)関西ﾌｨﾙﾊｰﾓﾆｰ管弦楽団 | K11: 12/1ﾜｰｸｼｮｯﾌﾟ公演料 | L11: 2011-12-27 | M11: ｺﾗﾎﾞ関ﾌｨﾙ
E12: 手数 | F12: 39,330 | G12: 振替1,437 | H12: 0 | I12: 39,330 | J12: 関ﾌｨﾙﾆｭｰｲﾔｰｺﾝｻｰﾄﾁｹｯﾄ販売手数料 | K12: 関ﾌｨﾙﾆｭｰｲﾔｰｺﾝｻｰﾄ販売手数料振替 | L12: 2012-02-15 | M12: ｺﾗﾎﾞ関ﾌｨﾙ
E13: 広告 | F13: 52,500 | G13: Ｎｏ．2,244 | H13: 0 | I13: 52,500 | J13: ㈱ｴﾌｴﾑ滋賀 | K13: 関ﾌｨﾙｴﾌｴﾑ滋賀告知放送 | L13: 2012-02-24 | M13: ｺﾗﾎﾞ関ﾌｨﾙ
E14: 委託 | F14: 30,210 | G14: Ｎｏ．2,246 | H14: 0 | I14: 30,210 | J14: （有）ｱｰﾙｽﾀｯﾌ | K14: 関ﾌｨﾙ受付･案内ｽﾀｯﾌ | L14: 2012-02-24 | M14: ｺﾗﾎﾞ関ﾌｨﾙ
E15: 印刷 | F15: 33,600 | G15: Ｎｏ．2,245 | H15: 0 | I15: 33,600 | J15: ㈱ｽﾏｲ印刷工業 | K15: 関ﾌｨﾙﾌﾟﾛｸﾞﾗﾑ印刷 | L15: 2012-02-24 | M15: ｺﾗﾎﾞ関ﾌｨﾙ
E16: 報償 | F16: 3,903,350 | G16: Ｎｏ．2,243 | H16: 0 | I16: 3,903,350 | J16: 特定非営利活動法人関西ﾌｨﾙﾊｰﾓﾆｰ管弦楽団 | K16: 関ﾌｨﾙﾆｭｰｲﾔｰｺﾝｻｰﾄ公演料 | L16: 2012-02-24 | M16: ｺﾗﾎﾞ関ﾌｨﾙ
E17: 使賃 | F17: 11,573 | G17: Ｎｏ．2,336 | H17: 0 | I17: 11,573 | J17: (社)日本音楽著作権協会 | K17: 関ﾌｨﾙﾆｭｰｲﾔｰｺﾝｻｰﾄ音楽著作権料 | L17: 2012-02-29 | M17: ｺﾗﾎﾞ関ﾌｨﾙ
F19: =SUM(F9:F18) -> 4,474,183

Sheet Sheet1 (hidden)
A1: 2016-10-11 | B1: 報償 | C1: 公 | E1: 100,000 | F1: 10,210 | G1: =E1-F1 -> 89,790 | H1: 岡田 健太郎 | I1: AC伊吹友達ソング 制作・演奏謝礼 | J1: AC伊吹 藤巻 | K1: 2016-12-15
A2: 2016-07-08 | B2: 印刷 | C2: 公 | D2: 284 | E2: 49,140 | G2: 49,140 | H2: RINRIEデザイン | I2: AC伊吹 藤巻コンサートチラシ印刷 | J2: AC伊吹 藤巻 | K2: 2016-07-29 | L2: 印刷AC伊吹 藤巻
A3: 2016-09-25 | B3: 使賃 | C3: 公 | D3: 670 | E3: 36,244 | G3: 36,244 | H3: 日本音楽著作権協会 | I3: ＡＣ伊吹 藤巻コンサート著作権使用料 | J3: AC伊吹 藤巻 | K3: 2016-10-31 | L3: 使賃AC伊吹 藤巻
A4: 2016-07-22 | B4: 報償 | C4: 公 | D4: 899 | E4: 4,500,000 | G4: =E4-F4 -> 4,500,000 | H4: (株)キョードーマネジメントシステムズ | I4: AC伊吹 藤巻コンサート公演料 | J4: AC伊吹 藤巻
A5: 2016-12-03 | B5: 手数 | C5: 公 | D5: 829 | E5: 99,200 | G5: =E5-F5 -> 99,200 | H5: (株)キョードーマネジメントシステムズ | I5: AC伊吹藤巻コンサート前売販売手数料 | J5: AC伊吹 藤巻
E6: =SUM(E1:E5) -> 4,784,584
B8: 入場料 | C8: 公 | E8: 335,000 | G8: 335,000 | H8: 伊吹薬草の里文化センター
B9: 入場料 | C9: 公 | E9: 20,000 | G9: 20,000 | H9: チケットぴあ
B10: 入場料 | C10: 公 | E10: 35,000 | G10: 35,000 | H10: ローソンチケット
B11: 入場料 | C11: 公 | E11: 1,125,000 | G11: 1,125,000 | H11: CNプレイガイド
B12: 入場料 | C12: 公 | E12: 60,000 | G12: 60,000 | H12: イープラス
E14: =SUM(E8:E13) -> 1,575,000

Sheet １ (2)
A1: （様式４）
A2: 令和8年度 滋賀県アートコラボレーション事業
A3: 経費内訳書
E4: 事業名：
E6: 実施日：
A7: ●収入
A8: 費 目 | C8: 金 額 | D8: 内 訳
A9: 入場料
A10: 参加料
A11: 協賛金収入
A12: そのほか収入
A13: 財団からの負担金収入
A14: 収入合計 | C14: =SUM(C9:C12) -> 0
A16: ●支出
A18: 【対象経費】
A20: 通し番号 ※証拠書類のコピーにも同じ番号を記載してください。 | B20: 日 付 | C20: 支出内容 | D20: 支払相手 | E20: 金額 | F20: 備考 ※領収書の宛名と提案者の名前が違う場合は、理由をご記載ください。
A21: 1
A22: 2
A23: 3
A24: 4
A25: 5
A26: 6
A27: 7
A28: 8
A29: 9
A30: 10
A31: 11
A32: 12
A33: 13
A34: 14
A35: 15
A36: 16
A37: 17
A38: 18
A39: 19
A40: 20
A41: 21
D43: 対象経費合計 | E43: =SUM(E21:E41) -> 0
A45: 【対象外経費】
A46: 通し番号 ※証拠書類は不要です。 | B46: 日 付 | C46: 支出内容 | D46: 支払相手 | E46: 金額 | F46: 備考
D58: 対象外経費合計 | E58: =SUM(E47:E56) -> 0
D60: 合計支出金額 | E60: =E43+E58 -> 0
D62: ※収入金額と同じ金額になるように記載してください。

Sheet Sheet2
